[Event "Early-Titled-Tuesday-Blitz-February-06-2024"]
[Site "Chess.com"]
[Date "2024.02.06"]
[Round "5"]
[White "MagnusCarlsen"]
[Black "Mackster23"]
[Result "1-0"]
[WhiteElo "3340"]
[BlackElo "2730"]
[TimeControl "180+1"]
[EndTime "8:53:27 PST"]
[Termination "MagnusCarlsen won by resignation"]

1. Nf3 {[%clk 0:02:59.6]} 1... d5 {[%clk 0:02:59.6]} 2. Na3 {[%clk 0:02:59.1]}
2... c5 {[%clk 0:02:56.1]} 3. g3 {[%clk 0:02:59.1]} 3... Nc6 {[%clk 0:02:56]} 4.
Bg2 {[%clk 0:02:59.8]} 4... e5 {[%clk 0:02:56]} 5. O-O {[%clk 0:03:00.6]} 5...
Nf6 {[%clk 0:02:56.1]} 6. d3 {[%clk 0:03:00.8]} 6... Be7 {[%clk 0:02:54.7]} 7.
e4 {[%clk 0:03:01.1]} 7... dxe4 {[%clk 0:02:39.1]} 8. dxe4 {[%clk 0:03:01]} 8...
Be6 {[%clk 0:02:37.4]} 9. Ng5 {[%clk 0:02:57.3]} 9... Bg4 {[%clk 0:02:29.7]} 10.
f3 {[%clk 0:02:57.5]} 10... Bc8 {[%clk 0:02:11.3]} 11. Qxd8+ {[%clk 0:02:56.2]}
11... Nxd8 {[%clk 0:02:04.6]} 12. c3 {[%clk 0:02:54.8]} 12... O-O {[%clk
0:01:46]} 13. Rd1 {[%clk 0:02:54.9]} 13... h6 {[%clk 0:01:45.2]} 14. Nh3 {[%clk
0:02:54.8]} 14... a6 {[%clk 0:01:37.6]} 15. Nf2 {[%clk 0:02:54.6]} 15... Be6
{[%clk 0:01:36.3]} 16. Bh3 {[%clk 0:02:53]} 16... Bxh3 {[%clk 0:01:35.2]} 17.
Nxh3 {[%clk 0:02:53.9]} 17... b5 {[%clk 0:01:35.4]} 18. Nc2 {[%clk 0:02:50.1]}
18... Nc6 {[%clk 0:01:30.1]} 19. Nf2 {[%clk 0:02:49.3]} 19... Rfd8 {[%clk
0:01:29.8]} 20. Rxd8+ {[%clk 0:02:49.1]} 20... Rxd8 {[%clk 0:01:29.7]} 21. Kf1
{[%clk 0:02:47.1]} 21... Kf8 {[%clk 0:01:20.8]} 22. Ke2 {[%clk 0:02:46.6]} 22...
c4 {[%clk 0:01:15.1]} 23. Be3 {[%clk 0:02:46.4]} 23... a5 {[%clk 0:01:15]} 24.
a4 {[%clk 0:02:38.2]} 24... b4 {[%clk 0:01:13.9]} 25. Bd2 {[%clk 0:02:38.5]}
25... Rb8 {[%clk 0:01:10.8]} 26. Ne3 {[%clk 0:02:38]} 26... bxc3 {[%clk
0:01:08.7]} 27. bxc3 {[%clk 0:02:38.9]} 27... Nd7 {[%clk 0:00:49.8]} 28. Nxc4
{[%clk 0:02:38.8]} 28... Nc5 {[%clk 0:00:50.1]} 29. Nd3 {[%clk 0:02:39.3]} 29...
Nb3 {[%clk 0:00:37.8]} 30. Ra2 {[%clk 0:02:38.2]} 30... f6 {[%clk 0:00:37.5]}
31. Be3 {[%clk 0:02:38]} 31... Nd8 {[%clk 0:00:14.2]} 32. Rb2 {[%clk 0:02:36]}
32... Rc8 {[%clk 0:00:14]} 33. Nb6 {[%clk 0:02:32]} 33... Rxc3 {[%clk
0:00:14.4]} 34. Nd5 {[%clk 0:02:32.2]} 34... Nd4+ {[%clk 0:00:04.5]} 35. Bxd4
{[%clk 0:02:32]} 35... exd4 {[%clk 0:00:05.4]} 36. Nxc3 {[%clk 0:02:32.1]} 36...
dxc3 {[%clk 0:00:06.3]} 37. Rb8 {[%clk 0:02:31.7]} 37... Kf7 {[%clk 0:00:05.7]}
38. Rc8 {[%clk 0:02:31.7]} 38... Ne6 {[%clk 0:00:03.3]} 39. Rxc3 {[%clk
0:02:29.8]} 1-0

[Event "Early-Titled-Tuesday-Blitz-February-06-2024"]
[Site "Chess.com"]
[Date "2024.02.06"]
[Round "5"]
[White "abelmat"]
[Black "Saraisitave"]
[Result "1-0"]
[WhiteElo "2084"]
[BlackElo "2229"]
[TimeControl "180+1"]
[EndTime "8:53:28 PST"]
[Termination "abelmat won on time"]

1. d4 {[%clk 0:03:00.9]} 1... d5 {[%clk 0:02:57.7]} 2. c4 {[%clk 0:03:00.9]}
2... c6 {[%clk 0:02:57.5]} 3. Nf3 {[%clk 0:03:00.8]} 3... Nf6 {[%clk 0:02:57.1]}
4. Nc3 {[%clk 0:03:01.1]} 4... e6 {[%clk 0:02:55.3]} 5. e3 {[%clk 0:03:01.5]}
5... Nbd7 {[%clk 0:02:54]} 6. Bd3 {[%clk 0:03:00.6]} 6... dxc4 {[%clk 0:02:53]}
7. Bxc4 {[%clk 0:03:00.8]} 7... b5 {[%clk 0:02:52.9]} 8. Bd3 {[%clk 0:03:01.3]}
8... a6 {[%clk 0:02:52.7]} 9. e4 {[%clk 0:03:00.6]} 9... c5 {[%clk 0:02:52.7]}
10. e5 {[%clk 0:02:59.3]} 10... cxd4 {[%clk 0:02:49.7]} 11. exf6 {[%clk
0:02:58.4]} 11... dxc3 {[%clk 0:02:49.1]} 12. fxg7 {[%clk 0:02:58.2]} 12... Bxg7
{[%clk 0:02:37.8]} 13. bxc3 {[%clk 0:02:35.5]} 13... Bxc3+ {[%clk 0:02:29]} 14.
Bd2 {[%clk 0:02:35.7]} 14... Bxa1 {[%clk 0:02:08.3]} 15. Qxa1 {[%clk 0:02:35.4]}
15... Rg8 {[%clk 0:01:11.7]} 16. O-O {[%clk 0:02:30.6]} 16... Bb7 {[%clk
0:01:07.8]} 17. Be2 {[%clk 0:02:21.6]} 17... Ne5 {[%clk 0:00:05.4]} 18. Qxe5
{[%clk 0:02:07.5]} 18... Qxd2 {[%clk 0:00:03.4]} 19. Rd1 {[%clk 0:01:44.3]} 1-0

[Event "Early-Titled-Tuesday-Blitz-February-06-2024"]
[Site "Chess.com"]
[Date "2024.02.06"]
[Round "5"]
[White "cthulhuuu"]
[Black "SoyuzTM4"]
[Result "1-0"]
[WhiteElo "2395"]
[BlackElo "2195"]
[TimeControl "180+1"]
[EndTime "8:53:29 PST"]
[Termination "cthulhuuu won on time"]

1. e4 {[%clk 0:03:00]} 1... c5 {[%clk 0:02:59.3]} 2. Nf3 {[%clk 0:03:00.1]} 2...
d6 {[%clk 0:02:58.6]} 3. g3 {[%clk 0:03:00.3]} 3... Nf6 {[%clk 0:02:57.2]} 4. d3
{[%clk 0:03:00.6]} 4... g6 {[%clk 0:02:56.7]} 5. Bg2 {[%clk 0:03:00.7]} 5... Bg7
{[%clk 0:02:56.5]} 6. O-O {[%clk 0:03:01.3]} 6... O-O {[%clk 0:02:55.8]} 7. Re1
{[%clk 0:03:02]} 7... Nc6 {[%clk 0:02:55]} 8. e5 {[%clk 0:03:02.7]} 8... dxe5
{[%clk 0:02:53]} 9. Nxe5 {[%clk 0:03:03.6]} 9... Nxe5 {[%clk 0:02:51.1]} 10.
Rxe5 {[%clk 0:03:04.5]} 10... Qc7 {[%clk 0:02:45.2]} 11. Bf4 {[%clk 0:03:04.1]}
11... Qb6 {[%clk 0:02:27.8]} 12. Nc3 {[%clk 0:03:03.4]} 12... Qxb2 {[%clk
0:02:20.1]} 13. Rxc5 {[%clk 0:03:02]} 13... Nd7 {[%clk 0:02:08.7]} 14. Rc7
{[%clk 0:03:01.4]} 14... Bxc3 {[%clk 0:02:02.6]} 15. Rb1 {[%clk 0:03:01.6]}
15... Qxa2 {[%clk 0:01:38.6]} 16. Rxc3 {[%clk 0:02:59.5]} 16... Qa5 {[%clk
0:01:33.5]} 17. Rcb3 {[%clk 0:02:50.1]} 17... a6 {[%clk 0:01:30.6]} 18. Bxb7
{[%clk 0:02:36.9]} 18... Bxb7 {[%clk 0:01:20.1]} 19. Rxb7 {[%clk 0:02:37.8]}
19... Nf6 {[%clk 0:01:15.6]} 20. Rxe7 {[%clk 0:02:30.7]} 20... Nd5 {[%clk
0:01:15]} 21. Bd2 {[%clk 0:02:21.9]} 21... Qc5 {[%clk 0:01:02.1]} 22. Rd7 {[%clk
0:02:10.3]} 22... a5 {[%clk 0:00:53.3]} 23. Rbb7 {[%clk 0:02:05.3]} 23... a4
{[%clk 0:00:39.6]} 24. Qf3 {[%clk 0:02:05.2]} 24... Qxc2 {[%clk 0:00:17.1]} 25.
Rxf7 {[%clk 0:02:02.5]} 1-0

[Event "Early-Titled-Tuesday-Blitz-February-06-2024"]
[Site "Chess.com"]
[Date "2024.02.06"]
[Round "5"]
[White "Msb2"]
[Black "Drags95"]
[Result "1-0"]
[WhiteElo "3009"]
[BlackElo "2840"]
[TimeControl "180+1"]
[EndTime "8:53:52 PST"]
[Termination "Msb2 won by resignation"]

1. d4 {[%clk 0:03:00.9]} 1... Nf6 {[%clk 0:03:00.3]} 2. c4 {[%clk 0:03:01.2]}
2... e6 {[%clk 0:03:00.9]} 3. Nc3 {[%clk 0:03:01.9]} 3... Bb4 {[%clk 0:03:00.9]}
4. e3 {[%clk 0:03:02.1]} 4... O-O {[%clk 0:02:58.5]} 5. Bd2 {[%clk 0:03:02.4]}
5... d5 {[%clk 0:02:55.2]} 6. Nf3 {[%clk 0:03:01.7]} 6... b6 {[%clk 0:02:55]} 7.
cxd5 {[%clk 0:03:01.9]} 7... exd5 {[%clk 0:02:55.1]} 8. Rc1 {[%clk 0:03:02.6]}
8... Re8 {[%clk 0:02:46.7]} 9. Ne5 {[%clk 0:03:01.4]} 9... Bb7 {[%clk
0:02:38.7]} 10. Bd3 {[%clk 0:03:01]} 10... Bf8 {[%clk 0:02:34.6]} 11. f4 {[%clk
0:03:01]} 11... c5 {[%clk 0:02:33.7]} 12. g4 {[%clk 0:03:01.8]} 12... Ne4 {[%clk
0:02:25.8]} 13. Nxe4 {[%clk 0:02:27.4]} 13... dxe4 {[%clk 0:02:23.3]} 14. Bc4
{[%clk 0:02:27.9]} 14... Bd5 {[%clk 0:02:22.5]} 15. Qb3 {[%clk 0:02:22.5]} 15...
Bxc4 {[%clk 0:02:21.5]} 16. Qxc4 {[%clk 0:02:23.4]} 16... Qc7 {[%clk 0:02:15.2]}
17. dxc5 {[%clk 0:02:08.5]} 17... bxc5 {[%clk 0:02:15.2]} 18. Qxe4 {[%clk
0:01:43.9]} 18... Nd7 {[%clk 0:02:14.3]} 19. Bc3 {[%clk 0:01:44.3]} 19... Nxe5
{[%clk 0:02:07.4]} 20. fxe5 {[%clk 0:01:33.6]} 20... Qb6 {[%clk 0:01:53.4]} 21.
O-O {[%clk 0:01:33.1]} 21... Qe6 {[%clk 0:01:53.3]} 22. b3 {[%clk 0:01:18.9]}
22... Rad8 {[%clk 0:01:52.6]} 23. Qc4 {[%clk 0:00:59.9]} 23... Qg6 {[%clk
0:01:26.5]} 24. h3 {[%clk 0:00:59.3]} 24... Rd3 {[%clk 0:01:18.3]} 25. Rxf7
{[%clk 0:00:54.2]} 25... Qxf7 {[%clk 0:01:14.5]} 26. Qxd3 {[%clk 0:00:54.1]}
26... Qf3 {[%clk 0:01:15.3]} 27. Qc4+ {[%clk 0:00:43.2]} 27... Kh8 {[%clk
0:01:15.6]} 28. Qf4 {[%clk 0:00:43.5]} 28... Qxh3 {[%clk 0:01:15.9]} 29. Rf1
{[%clk 0:00:42.8]} 29... Be7 {[%clk 0:01:13.7]} 30. e6 {[%clk 0:00:42.1]} 30...
h6 {[%clk 0:01:04.1]} 31. Bxg7+ {[%clk 0:00:39.3]} 1-0

[Event "Early-Titled-Tuesday-Blitz-February-06-2024"]
[Site "Chess.com"]
[Date "2024.02.06"]
[Round "5"]
[White "AA95"]
[Black "baki83"]
[Result "0-1"]
[WhiteElo "2504"]
[BlackElo "2798"]
[TimeControl "180+1"]
[EndTime "8:53:56 PST"]
[Termination "baki83 won on time"]

1. Nf3 {[%clk 0:03:00.9]} 1... d5 {[%clk 0:02:59.4]} 2. d4 {[%clk 0:02:58.9]}
2... Nf6 {[%clk 0:02:59.2]} 3. c4 {[%clk 0:02:58.2]} 3... dxc4 {[%clk
0:02:59.6]} 4. Nc3 {[%clk 0:02:57.5]} 4... a6 {[%clk 0:02:58.9]} 5. a4 {[%clk
0:02:55.9]} 5... Nc6 {[%clk 0:02:58.5]} 6. h3 {[%clk 0:02:40.6]} 6... Bf5 {[%clk
0:02:50.1]} 7. a5 {[%clk 0:02:37.5]} 7... e5 {[%clk 0:02:37.6]} 8. e4 {[%clk
0:02:07.1]} 8... Nxe4 {[%clk 0:02:32.4]} 9. Bxc4 {[%clk 0:02:05.3]} 9... Bb4
{[%clk 0:02:11.9]} 10. O-O {[%clk 0:01:59.9]} 10... O-O {[%clk 0:02:09.1]} 11.
d5 {[%clk 0:01:18.9]} 11... Nxa5 {[%clk 0:02:07.3]} 12. Nxe4 {[%clk 0:00:48]}
12... Bxe4 {[%clk 0:02:00.1]} 13. Be2 {[%clk 0:00:19.2]} 13... Qxd5 {[%clk
0:01:53.7]} 14. Qa4 {[%clk 0:00:16.6]} 14... c5 {[%clk 0:01:36]} 15. Rd1 {[%clk
0:00:16.5]} 15... Qb3 {[%clk 0:01:29.7]} 16. Nxe5 {[%clk 0:00:06.8]} 16... Qxa4
{[%clk 0:01:27.3]} 17. Rxa4 {[%clk 0:00:07.6]} 17... Bc2 {[%clk 0:01:26.2]} 18.
Rxb4 {[%clk 0:00:05.1]} 18... cxb4 {[%clk 0:01:26.1]} 19. Rd7 {[%clk 0:00:04.5]}
19... Bf5 {[%clk 0:01:24]} 20. Re7 {[%clk 0:00:03.6]} 20... Rae8 {[%clk
0:01:22]} 21. Rxe8 {[%clk 0:00:03.5]} 21... Rxe8 {[%clk 0:01:22.1]} 22. Bf4
{[%clk 0:00:01.7]} 22... f6 {[%clk 0:01:20.9]} 23. Bg4 {[%clk 0:00:01.5]} 23...
fxe5 {[%clk 0:01:20.4]} 0-1

[Event "Early-Titled-Tuesday-Blitz-February-06-2024"]
[Site "Chess.com"]
[Date "2024.02.06"]
[Round "5"]
[White "marsofsilva"]
[Black "Rawnsdale"]
[Result "0-1"]
[WhiteElo "2067"]
[BlackElo "2514"]
[TimeControl "180+1"]
[EndTime "8:53:57 PST"]
[Termination "Rawnsdale won on time"]

1. e4 {[%clk 0:02:56.1]} 1... c6 {[%clk 0:02:51.3]} 2. d4 {[%clk 0:02:55.3]}
2... d5 {[%clk 0:02:52.2]} 3. exd5 {[%clk 0:02:54.7]} 3... cxd5 {[%clk
0:02:53.1]} 4. c4 {[%clk 0:02:55.4]} 4... Nf6 {[%clk 0:02:53.1]} 5. Nc3 {[%clk
0:02:54.7]} 5... Nc6 {[%clk 0:02:52.9]} 6. Nf3 {[%clk 0:02:54.7]} 6... Be6
{[%clk 0:02:53.1]} 7. Ng5 {[%clk 0:02:47.3]} 7... Bg4 {[%clk 0:02:52.6]} 8. Qb3
{[%clk 0:02:43.3]} 8... Na5 {[%clk 0:02:51.7]} 9. Qb5+ {[%clk 0:02:40.9]} 9...
Bd7 {[%clk 0:02:50.8]} 10. Qb4 {[%clk 0:02:32.6]} 10... e5 {[%clk 0:02:48.7]}
11. c5 {[%clk 0:02:31.8]} 11... Nc6 {[%clk 0:02:32.4]} 12. Qxb7 {[%clk
0:02:12.6]} 12... Rb8 {[%clk 0:02:26.6]} 13. Qa6 {[%clk 0:02:11.5]} 13... Nb4
{[%clk 0:02:24.3]} 14. Qe2 {[%clk 0:02:08.5]} 14... e4 {[%clk 0:02:10.7]} 15.
Bf4 {[%clk 0:02:03.9]} 15... Nd3+ {[%clk 0:02:06.6]} 16. Kd1 {[%clk 0:01:52.8]}
16... Nxf4 {[%clk 0:02:06.2]} 17. Qe3 {[%clk 0:01:53.2]} 17... Ne6 {[%clk
0:01:56.4]} 18. Nxe6 {[%clk 0:01:29.7]} 18... fxe6 {[%clk 0:01:53.5]} 19. Kc1
{[%clk 0:01:21.3]} 19... Be7 {[%clk 0:01:50.8]} 20. f3 {[%clk 0:01:02.8]} 20...
exf3 {[%clk 0:01:49.6]} 21. gxf3 {[%clk 0:01:02.7]} 21... O-O {[%clk 0:01:36.8]}
22. Bd3 {[%clk 0:01:01.9]} 22... Nh5 {[%clk 0:01:25.4]} 23. Rg1 {[%clk
0:00:46.2]} 23... Nf4 {[%clk 0:01:20.7]} 24. Bc2 {[%clk 0:00:04.6]} 24... Bg5
{[%clk 0:01:20.3]} 25. h4 {[%clk 0:00:02]} 25... Ne2+ {[%clk 0:01:17.8]} 0-1

[Event "Early-Titled-Tuesday-Blitz-February-06-2024"]
[Site "Chess.com"]
[Date "2024.02.06"]
[Round "5"]
[White "bescmelasti"]
[Black "Sina_Movahed"]
[Result "0-1"]
[WhiteElo "2685"]
[BlackElo "3016"]
[TimeControl "180+1"]
[EndTime "8:53:59 PST"]
[Termination "Sina_Movahed won by resignation"]

1. e4 {[%clk 0:03:00.9]} 1... c5 {[%clk 0:02:51.9]} 2. Nf3 {[%clk 0:03:01.1]}
2... d6 {[%clk 0:02:37.7]} 3. d4 {[%clk 0:02:59]} 3... cxd4 {[%clk 0:02:38.6]}
4. Nxd4 {[%clk 0:02:59.7]} 4... Nf6 {[%clk 0:02:37]} 5. Nc3 {[%clk 0:02:59.9]}
5... g6 {[%clk 0:02:35.8]} 6. Be3 {[%clk 0:02:58.5]} 6... a6 {[%clk 0:02:34.9]}
7. f3 {[%clk 0:02:56.9]} 7... h5 {[%clk 0:02:34.8]} 8. Qd2 {[%clk 0:02:56.2]}
8... Nbd7 {[%clk 0:02:34.3]} 9. Be2 {[%clk 0:02:49.9]} 9... Bg7 {[%clk
0:02:33.2]} 10. O-O {[%clk 0:02:49.4]} 10... O-O {[%clk 0:02:31.7]} 11. Bh6
{[%clk 0:02:48.7]} 11... Bxh6 {[%clk 0:02:30.5]} 12. Qxh6 {[%clk 0:02:48.6]}
12... Qb6 {[%clk 0:02:31.2]} 13. Qd2 {[%clk 0:02:21.5]} 13... e5 {[%clk
0:02:29]} 14. Rfd1 {[%clk 0:02:18.3]} 14... Rd8 {[%clk 0:02:19]} 15. Na4 {[%clk
0:01:58.2]} 15... Qxd4+ {[%clk 0:02:10.7]} 16. Qxd4 {[%clk 0:01:59.1]} 16...
exd4 {[%clk 0:02:11.6]} 17. Rxd4 {[%clk 0:02:00]} 17... b5 {[%clk 0:02:12.5]}
18. Nc3 {[%clk 0:01:59.9]} 18... Ne5 {[%clk 0:02:08.4]} 19. Rad1 {[%clk
0:01:59.1]} 19... Be6 {[%clk 0:02:07.6]} 20. Rxd6 {[%clk 0:01:54.4]} 20... Rxd6
{[%clk 0:02:07.2]} 21. Rxd6 {[%clk 0:01:55.3]} 21... Kf8 {[%clk 0:02:07.3]} 22.
f4 {[%clk 0:01:45.9]} 22... Ned7 {[%clk 0:01:58.8]} 23. e5 {[%clk 0:01:25.6]}
23... Ne8 {[%clk 0:01:59.2]} 24. Rd4 {[%clk 0:01:24]} 24... Rc8 {[%clk
0:01:59.3]} 25. Bf3 {[%clk 0:01:22]} 25... Rc7 {[%clk 0:01:52.9]} 26. a4 {[%clk
0:01:16.6]} 26... bxa4 {[%clk 0:01:46.5]} 27. Rxa4 {[%clk 0:01:17.5]} 27... Nc5
{[%clk 0:01:46.6]} 28. Ra5 {[%clk 0:01:17.3]} 28... Ng7 {[%clk 0:01:45.1]} 29.
Kf2 {[%clk 0:01:07.8]} 29... Nf5 {[%clk 0:01:45.1]} 30. Ne2 {[%clk 0:01:06.6]}
30... Bc4 {[%clk 0:01:36.2]} 31. b3 {[%clk 0:00:14.1]} 31... Bxe2 {[%clk
0:01:31.6]} 32. Kxe2 {[%clk 0:00:12.7]} 32... Nd4+ {[%clk 0:01:31.6]} 33. Kd2
{[%clk 0:00:11.6]} 33... Ndxb3+ {[%clk 0:01:31]} 0-1

[Event "Early-Titled-Tuesday-Blitz-February-06-2024"]
[Site "Chess.com"]
[Date "2024.02.06"]
[Round "5"]
[White "xakevicius91"]
[Black "ChessSG1"]
[Result "1-0"]
[WhiteElo "2608"]
[BlackElo "2430"]
[TimeControl "180+1"]
[EndTime "8:54:01 PST"]
[Termination "xakevicius91 won on time"]

1. e4 {[%clk 0:03:00.2]} 1... c5 {[%clk 0:02:59.9]} 2. Nf3 {[%clk 0:03:00.2]}
2... e6 {[%clk 0:03:00.1]} 3. b3 {[%clk 0:03:00.2]} 3... d6 {[%clk 0:02:59.1]}
4. Bb2 {[%clk 0:02:59.2]} 4... Nf6 {[%clk 0:02:58.2]} 5. Nc3 {[%clk 0:02:45.9]}
5... Nc6 {[%clk 0:02:58.1]} 6. d4 {[%clk 0:02:46]} 6... cxd4 {[%clk 0:02:52.7]}
7. Nxd4 {[%clk 0:02:46.9]} 7... Be7 {[%clk 0:02:20.5]} 8. Qd2 {[%clk 0:02:44.8]}
8... Nxd4 {[%clk 0:02:10.6]} 9. Qxd4 {[%clk 0:02:45.7]} 9... Bd7 {[%clk
0:02:10.7]} 10. f3 {[%clk 0:02:43.9]} 10... a6 {[%clk 0:02:02.5]} 11. g4 {[%clk
0:02:41.9]} 11... h6 {[%clk 0:01:36.7]} 12. O-O-O {[%clk 0:02:37.2]} 12... Rc8
{[%clk 0:01:32.4]} 13. Kb1 {[%clk 0:02:37.1]} 13... O-O {[%clk 0:01:09.7]} 14.
h4 {[%clk 0:02:37.1]} 14... d5 {[%clk 0:01:03.4]} 15. g5 {[%clk 0:02:33]} 15...
Bc5 {[%clk 0:00:56.9]} 16. Qd2 {[%clk 0:02:32.1]} 16... Nh5 {[%clk 0:00:31.6]}
17. exd5 {[%clk 0:02:28.7]} 17... Ng3 {[%clk 0:00:30.3]} 18. Rh2 {[%clk
0:02:23.4]} 18... Nxf1 {[%clk 0:00:30.3]} 19. Rxf1 {[%clk 0:02:21.6]} 19... e5
{[%clk 0:00:22.4]} 20. gxh6 {[%clk 0:02:18.9]} 20... g6 {[%clk 0:00:14.1]} 21.
Ne4 {[%clk 0:02:16.2]} 21... Bf5 {[%clk 0:00:14.2]} 22. Rg2 {[%clk 0:02:12.2]}
22... Bd6 {[%clk 0:00:07.9]} 23. h5 {[%clk 0:02:10.3]} 23... Kh7 {[%clk
0:00:07.2]} 24. hxg6+ {[%clk 0:02:06.6]} 24... fxg6 {[%clk 0:00:06.3]} 25. Rfg1
{[%clk 0:02:02]} 25... Bxe4 {[%clk 0:00:03.8]} 26. fxe4 {[%clk 0:02:02.9]} 26...
Qf6 {[%clk 0:00:01.6]} 27. a4 {[%clk 0:01:56.5]} 27... g5 {[%clk 0:00:01.1]} 28.
Rxg5 {[%clk 0:01:55.3]} 28... Rg8 {[%clk 0:00:01.6]} 29. Rg7+ {[%clk 0:01:51.7]}
29... Rxg7 {[%clk 0:00:01.8]} 30. hxg7 {[%clk 0:01:52.6]} 30... Kg8 {[%clk
0:00:02.1]} 31. Qg5 {[%clk 0:01:47.9]} 31... Qxg5 {[%clk 0:00:02.1]} 32. Rxg5
{[%clk 0:01:48.8]} 32... Rc7 {[%clk 0:00:02.6]} 33. Bxe5 {[%clk 0:01:48.9]}
33... Bxe5 {[%clk 0:00:02.6]} 34. Rxe5 {[%clk 0:01:49.8]} 34... Kxg7 {[%clk
0:00:03]} 35. Re6 {[%clk 0:01:49.7]} 35... Kf7 {[%clk 0:00:02.8]} 36. c4 {[%clk
0:01:49.6]} 36... b5 {[%clk 0:00:01.9]} 37. axb5 {[%clk 0:01:47.8]} 37... axb5
{[%clk 0:00:02.8]} 38. Rc6 {[%clk 0:01:48.1]} 38... Rb7 {[%clk 0:00:01.7]} 39.
c5 {[%clk 0:01:47.3]} 1-0

[Event "Early-Titled-Tuesday-Blitz-February-06-2024"]
[Site "Chess.com"]
[Date "2024.02.06"]
[Round "5"]
[White "pfalcon1949"]
[Black "Rosh1610"]
[Result "0-1"]
[WhiteElo "1954"]
[BlackElo "2357"]
[TimeControl "180+1"]
[EndTime "8:54:03 PST"]
[Termination "Rosh1610 won by resignation"]

1. e4 {[%clk 0:03:00.9]} 1... Nc6 {[%clk 0:03:00.9]} 2. Nc3 {[%clk 0:02:58.4]}
2... Nf6 {[%clk 0:03:01.1]} 3. g3 {[%clk 0:02:56]} 3... e5 {[%clk 0:03:00]} 4.
Bg2 {[%clk 0:02:56]} 4... Bc5 {[%clk 0:03:00.5]} 5. Nge2 {[%clk 0:02:55.2]} 5...
O-O {[%clk 0:03:00.5]} 6. d3 {[%clk 0:02:54.6]} 6... d6 {[%clk 0:02:58.6]} 7.
O-O {[%clk 0:02:51.1]} 7... h6 {[%clk 0:02:57.5]} 8. Be3 {[%clk 0:02:50.2]} 8...
Bg4 {[%clk 0:02:55.9]} 9. Qd2 {[%clk 0:02:46.9]} 9... Bxe3 {[%clk 0:02:45.1]}
10. Qxe3 {[%clk 0:02:43.2]} 10... Bxe2 {[%clk 0:02:46]} 11. Nxe2 {[%clk
0:02:42.2]} 11... d5 {[%clk 0:02:45.3]} 12. Rad1 {[%clk 0:02:29.1]} 12... dxe4
{[%clk 0:02:42]} 13. dxe4 {[%clk 0:02:21.7]} 13... Qe7 {[%clk 0:02:38.2]} 14. c3
{[%clk 0:02:21.5]} 14... Rad8 {[%clk 0:02:35]} 15. h3 {[%clk 0:02:21.2]} 15...
Rxd1 {[%clk 0:02:33.3]} 16. Rxd1 {[%clk 0:02:20]} 16... Rd8 {[%clk 0:02:34.2]}
17. Rd2 {[%clk 0:02:12.1]} 17... Rd6 {[%clk 0:02:31.4]} 18. g4 {[%clk
0:02:08.6]} 18... Qd7 {[%clk 0:02:29.2]} 19. Rxd6 {[%clk 0:02:07.5]} 19... Qxd6
{[%clk 0:02:30.1]} 20. Ng3 {[%clk 0:02:06.6]} 20... Qd1+ {[%clk 0:02:16.9]} 21.
Kh2 {[%clk 0:02:05.6]} 21... Qc2 {[%clk 0:02:11.2]} 22. Qe2 {[%clk 0:01:54.4]}
22... Qb1 {[%clk 0:01:51.9]} 23. a3 {[%clk 0:01:47.7]} 23... a6 {[%clk
0:01:49.3]} 24. Nf5 {[%clk 0:01:44.7]} 24... Kh7 {[%clk 0:01:44.9]} 25. h4
{[%clk 0:01:24.1]} 25... g6 {[%clk 0:01:34.5]} 26. Nxh6 {[%clk 0:01:18.5]} 26...
Kxh6 {[%clk 0:01:33.8]} 27. g5+ {[%clk 0:01:17.6]} 27... Kg7 {[%clk 0:01:33.2]}
28. gxf6+ {[%clk 0:01:15.9]} 28... Kxf6 {[%clk 0:01:34.1]} 29. h5 {[%clk
0:01:08.6]} 29... gxh5 {[%clk 0:01:17.7]} 30. Qxh5 {[%clk 0:01:06.3]} 30... Qxb2
{[%clk 0:01:15.4]} 31. Qf5+ {[%clk 0:01:05.7]} 31... Ke7 {[%clk 0:01:12.2]} 32.
Bh3 {[%clk 0:01:02.4]} 32... Qd2 {[%clk 0:00:46.3]} 33. Qg5+ {[%clk 0:01:00.3]}
33... Qxg5 {[%clk 0:00:44.7]} 0-1

[Event "Early-Titled-Tuesday-Blitz-February-06-2024"]
[Site "Chess.com"]
[Date "2024.02.06"]
[Round "5"]
[White "mjray79"]
[Black "Shushik"]
[Result "1-0"]
[WhiteElo "2727"]
[BlackElo "2538"]
[TimeControl "180+1"]
[EndTime "8:54:04 PST"]
[Termination "mjray79 won by resignation"]

1. Nf3 {[%clk 0:03:00.9]} 1... Nf6 {[%clk 0:02:59.7]} 2. d4 {[%clk 0:03:00.4]}
2... d5 {[%clk 0:02:59]} 3. c4 {[%clk 0:03:00.2]} 3... e6 {[%clk 0:02:59.6]} 4.
Nc3 {[%clk 0:02:59.8]} 4... dxc4 {[%clk 0:02:59.9]} 5. e4 {[%clk 0:02:58.2]}
5... b5 {[%clk 0:03:00.4]} 6. e5 {[%clk 0:02:57.9]} 6... Nd5 {[%clk 0:03:01]} 7.
Nxb5 {[%clk 0:02:57.6]} 7... Nb6 {[%clk 0:03:01.7]} 8. Be2 {[%clk 0:02:56]} 8...
Nc6 {[%clk 0:03:01.9]} 9. O-O {[%clk 0:02:53.4]} 9... Be7 {[%clk 0:03:02.2]} 10.
Be3 {[%clk 0:02:52.1]} 10... O-O {[%clk 0:02:59.2]} 11. Qb1 {[%clk 0:02:52.1]}
11... Rb8 {[%clk 0:02:47.6]} 12. Qe4 {[%clk 0:02:45.5]} 12... Nb4 {[%clk
0:02:37]} 13. Rfc1 {[%clk 0:02:32.4]} 13... Ba6 {[%clk 0:02:19.3]} 14. a4 {[%clk
0:02:18.6]} 14... Nxa4 {[%clk 0:01:57.5]} 15. Rxa4 {[%clk 0:02:00.6]} 15... Bxb5
{[%clk 0:01:53.5]} 16. Rxa7 {[%clk 0:02:01.2]} 16... Nc6 {[%clk 0:01:06.9]} 17.
Raa1 {[%clk 0:01:57.4]} 17... Qd5 {[%clk 0:01:06.9]} 18. Qg4 {[%clk 0:01:53.9]}
18... Kh8 {[%clk 0:01:06.4]} 19. Nd2 {[%clk 0:01:50.7]} 19... Ra8 {[%clk
0:00:55.2]} 20. Rxa8 {[%clk 0:01:41.4]} 20... Rxa8 {[%clk 0:00:56.1]} 21. Nxc4
{[%clk 0:01:39.7]} 21... Nb4 {[%clk 0:00:46.2]} 22. Bf3 {[%clk 0:01:37.2]} 22...
Qd8 {[%clk 0:00:42.4]} 23. Bxa8 {[%clk 0:01:34.4]} 23... Qxa8 {[%clk 0:00:43.3]}
24. Na3 {[%clk 0:01:34.1]} 24... Bc6 {[%clk 0:00:39.8]} 25. Bg5 {[%clk
0:01:24.1]} 25... Nd3 {[%clk 0:00:36.9]} 26. Rc3 {[%clk 0:01:10.9]} 26... Bxg5
{[%clk 0:00:29.4]} 27. Qxg5 {[%clk 0:01:11.8]} 27... Nxb2 {[%clk 0:00:29.6]} 28.
Rxc6 {[%clk 0:01:11.2]} 28... h6 {[%clk 0:00:19.3]} 29. Qc1 {[%clk 0:01:11.1]}
29... Nd3 {[%clk 0:00:18.7]} 30. Qc3 {[%clk 0:01:08.8]} 1-0